[Event "Titled Tuesday Blitz January 25 2022"]
[White "Borisova, Ekaterina"]
[Black "Cherniaiev, Tykhon"]
[WhiteFideId "34124184"]
[BlackFideId "14182360"]
[WhiteElo "2034"]
[BlackElo "2289"]
[Result "0-1"]
[Round "05"]
[TimeControl "180+1"]
[Date "2022.01.26"]
[WhiteClock "0:00:17"]
[BlackClock "0:00:07"]

1. d4 {[%clk 0:02:57]}  Nf6 {[%clk 0:03:00]} 2. c4 {[%clk 0:02:54]}  e6 {[%clk 0:03:00]} 3. g3 {[%clk 0:02:52]}  d5 {[%clk 0:03:00]} 4. Nf3 {[%clk 0:02:52]}  Be7 {[%clk 0:03:00]} 5. Bg2 {[%clk 0:02:52]}  O-O {[%clk 0:03:01]} 6. O-O {[%clk 0:02:53]}  dxc4 {[%clk 0:03:01]} 7. Qc2 {[%clk 0:02:51]}  a6 {[%clk 0:03:00]} 8. a4 {[%clk 0:02:50]}  Bd7 {[%clk 0:02:56]} 9. Qxc4 {[%clk 0:02:50]}  b5 {[%clk 0:02:40]} 10. Qc2 {[%clk 0:02:48]}  Bc6 {[%clk 0:02:39]} 11. Bg5 {[%clk 0:02:48]}  Be4 {[%clk 0:02:38]} 12. Qc1 {[%clk 0:02:48]}  b4 {[%clk 0:02:24]} 13. Nbd2 {[%clk 0:02:47]}  Bb7 {[%clk 0:02:21]} 14. Qc2 {[%clk 0:02:44]}  h6 {[%clk 0:01:54]} 15. Bf4 {[%clk 0:02:39]}  Nc6 {[%clk 0:01:46]} 16. Nb3 {[%clk 0:02:37]}  Bd6 {[%clk 0:01:23]} 17. Ne5 {[%clk 0:02:27]}  Bxe5 {[%clk 0:01:16]} 18. Bxe5 {[%clk 0:02:25]}  Nd5 {[%clk 0:00:58]} 19. Nc5 {[%clk 0:02:22]}  Nxe5 {[%clk 0:00:49]} 20. dxe5 {[%clk 0:02:16]}  Qc8 {[%clk 0:00:39]} 21. Rac1 {[%clk 0:02:06]}  Rd8 {[%clk 0:00:34]} 22. Rfd1 {[%clk 0:02:02]}  Rb8 {[%clk 0:00:31]} 23. Bxd5 {[%clk 0:01:56]}  Bxd5 {[%clk 0:00:30]} 24. e4 {[%clk 0:01:56]}  Ba8 {[%clk 0:00:25]} 25. Rxd8+ {[%clk 0:01:52]}  Qxd8 {[%clk 0:00:26]} 26. Rd1 {[%clk 0:01:53]}  Qc8 {[%clk 0:00:22]} 27. b3 {[%clk 0:01:49]}  Bc6 {[%clk 0:00:20]} 28. Qd3 {[%clk 0:01:44]}  a5 {[%clk 0:00:19]} 29. f4 {[%clk 0:01:43]}  Qf8 {[%clk 0:00:18]} 30. Qc4 {[%clk 0:01:22]}  Rd8 {[%clk 0:00:14]} 31. Rxd8 {[%clk 0:00:56]}  Qxd8 {[%clk 0:00:15]} 32. Nxe6 {[%clk 0:00:57]}  Qd1+ {[%clk 0:00:14]} 33. Kg2 {[%clk 0:00:55]}  Qd2+ {[%clk 0:00:14]} 34. Kh3 {[%clk 0:00:55]}  Bd7 {[%clk 0:00:15]} 35. f5 {[%clk 0:00:54]}  fxe6 {[%clk 0:00:15]} 36. fxe6 {[%clk 0:00:54]}  Bc8 {[%clk 0:00:15]} 37. Qc6 {[%clk 0:00:45]}  Qd8 {[%clk 0:00:12]} 38. Kg2 {[%clk 0:00:40]}  Qe7 {[%clk 0:00:12]} 39. Qa8 {[%clk 0:00:38]}  Qxe6 {[%clk 0:00:12]} 40. Qxa5 {[%clk 0:00:38]}  Qxb3 {[%clk 0:00:12]} 41. Qxc7 {[%clk 0:00:37]}  Qe6 {[%clk 0:00:12]} 42. a5 {[%clk 0:00:36]}  b3 {[%clk 0:00:12]} 43. Qb8 {[%clk 0:00:36]}  Kh7 {[%clk 0:00:12]} 44. Qb4 {[%clk 0:00:35]}  Bd7 {[%clk 0:00:12]} 45. Kf3 {[%clk 0:00:27]}  Bc6 {[%clk 0:00:12]} 46. a6 {[%clk 0:00:26]}  Ba8 {[%clk 0:00:10]} 47. a7 {[%clk 0:00:26]}  Qf7+ {[%clk 0:00:10]} 48. Kg4 {[%clk 0:00:25]}  Qxa7 {[%clk 0:00:10]} 49. Qxb3 {[%clk 0:00:25]}  Bxe4 {[%clk 0:00:10]} 50. Qe6 {[%clk 0:00:23]}  Qe3 {[%clk 0:00:09]} 51. Kh3 {[%clk 0:00:20]}  Qe2 {[%clk 0:00:08]} 52. g4 {[%clk 0:00:16]}  Qg2+ {[%clk 0:00:07]} 53. Kh4 {[%clk 0:00:17]}  Qxh2# {[%clk 0:00:07]} 0-1


[Site "https://www.chess.com"]

[Event "Titled Tuesday Blitz January 25 2022"]
[White "Brodowski, Piotr"]
[Black "Zakhartsov, Vladimir"]
[WhiteFideId "1124480"]
[BlackFideId "4145097"]
[WhiteElo "2422"]
[BlackElo "2432"]
[Result "1/2-1/2"]
[Round "05"]
[TimeControl "180+1"]
[Date "2022.01.26"]
[WhiteClock "0:00:10"]
[BlackClock "0:00:09"]

1. c4 {[%clk 0:03:00]}  e5 {[%clk 0:02:04]} 2. Nc3 {[%clk 0:02:56]}  Nf6 {[%clk 0:02:03]} 3. Nf3 {[%clk 0:02:55]}  Nc6 {[%clk 0:02:02]} 4. a3 {[%clk 0:02:46]}  e4 {[%clk 0:01:56]} 5. Ng5 {[%clk 0:02:42]}  Qe7 {[%clk 0:01:56]} 6. Qc2 {[%clk 0:02:38]}  Nd4 {[%clk 0:01:56]} 7. Qd1 {[%clk 0:02:10]}  h6 {[%clk 0:01:48]} 8. Nh3 {[%clk 0:02:09]}  c6 {[%clk 0:01:44]} 9. e3 {[%clk 0:02:06]}  Ne6 {[%clk 0:01:42]} 10. d4 {[%clk 0:02:05]}  exd3 {[%clk 0:01:42]} 11. Bxd3 {[%clk 0:02:05]}  g6 {[%clk 0:01:41]} 12. O-O {[%clk 0:02:04]}  Bg7 {[%clk 0:01:42]} 13. Nf4 {[%clk 0:02:02]}  O-O {[%clk 0:01:35]} 14. Qc2 {[%clk 0:02:01]}  d6 {[%clk 0:01:28]} 15. b4 {[%clk 0:01:53]}  Nxf4 {[%clk 0:01:24]} 16. exf4 {[%clk 0:01:53]}  d5 {[%clk 0:01:24]} 17. Bb2 {[%clk 0:01:50]}  dxc4 {[%clk 0:01:19]} 18. Bxc4 {[%clk 0:01:51]}  Bf5 {[%clk 0:01:20]} 19. Qb3 {[%clk 0:01:51]}  b5 {[%clk 0:01:13]} 20. Be2 {[%clk 0:01:50]}  a5 {[%clk 0:01:13]} 21. Bf3 {[%clk 0:01:45]}  Be6 {[%clk 0:01:04]} 22. Qc2 {[%clk 0:01:44]}  axb4 {[%clk 0:01:04]} 23. axb4 {[%clk 0:01:42]}  Qxb4 {[%clk 0:01:04]} 24. Bxc6 {[%clk 0:01:17]}  Rac8 {[%clk 0:01:00]} 25. Ba3 {[%clk 0:01:14]}  Qc4 {[%clk 0:00:43]} 26. Bxf8 {[%clk 0:01:14]}  Bxf8 {[%clk 0:00:41]} 27. Bxb5 {[%clk 0:00:45]}  Qxc3 {[%clk 0:00:40]} 28. Qxc3 {[%clk 0:00:45]}  Rxc3 {[%clk 0:00:41]} 29. g3 {[%clk 0:00:43]}  Kg7 {[%clk 0:00:28]} 30. Rfc1 {[%clk 0:00:43]}  Rxc1+ {[%clk 0:00:26]} 31. Rxc1 {[%clk 0:00:43]}  h5 {[%clk 0:00:26]} 32. Bc6 {[%clk 0:00:42]}  Be7 {[%clk 0:00:25]} 33. Bf3 {[%clk 0:00:42]}  Bd8 {[%clk 0:00:25]} 34. Kg2 {[%clk 0:00:42]}  Bb6 {[%clk 0:00:24]} 35. h3 {[%clk 0:00:42]}  Bf5 {[%clk 0:00:23]} 36. Rc6 {[%clk 0:00:42]}  Bd4 {[%clk 0:00:21]} 37. Rc4 {[%clk 0:00:42]}  Bb6 {[%clk 0:00:20]} 38. Rc6 {[%clk 0:00:41]}  Bd8 {[%clk 0:00:21]} 39. Ra6 {[%clk 0:00:40]}  Be7 {[%clk 0:00:21]} 40. Ra7 {[%clk 0:00:40]}  Kf8 {[%clk 0:00:20]} 41. Ra8+ {[%clk 0:00:39]}  Kg7 {[%clk 0:00:21]} 42. Ra7 {[%clk 0:00:40]}  Bf8 {[%clk 0:00:21]} 43. Ra5 {[%clk 0:00:40]}  Be6 {[%clk 0:00:22]} 44. Ra6 {[%clk 0:00:40]}  Nd7 {[%clk 0:00:21]} 45. Ra7 {[%clk 0:00:39]}  Nc5 {[%clk 0:00:20]} 46. Ra1 {[%clk 0:00:29]}  Bf5 {[%clk 0:00:17]} 47. Rc1 {[%clk 0:00:27]}  Nd3 {[%clk 0:00:17]} 48. Rd1 {[%clk 0:00:27]}  Bb4 {[%clk 0:00:15]} 49. g4 {[%clk 0:00:17]}  hxg4 {[%clk 0:00:12]} 50. hxg4 {[%clk 0:00:18]}  Ne1+ {[%clk 0:00:05]} 51. Rxe1 {[%clk 0:00:08]}  Bxe1 {[%clk 0:00:06]} 52. gxf5 {[%clk 0:00:08]}  gxf5 {[%clk 0:00:06]} 53. Bd1 {[%clk 0:00:08]}  Kf6 {[%clk 0:00:07]} 54. Kf3 {[%clk 0:00:09]}  Bb4 {[%clk 0:00:07]} 55. Bc2 {[%clk 0:00:10]}  Be7 {[%clk 0:00:08]} 56. Bd3 {[%clk 0:00:10]}  Bf8 {[%clk 0:00:09]} 57. Bc2 {[%clk 0:00:10]} 1/2-1/2


[Site "https://www.chess.com"]

[Event "Titled Tuesday Blitz January 25 2022"]
[White "Di Nicolantonio, Lucas"]
[Black "Stribuk, Artiom"]
[WhiteFideId "680460"]
[BlackFideId "13515659"]
[WhiteElo "2381"]
[BlackElo "2224"]
[Result "0-1"]
[Round "05"]
[TimeControl "180+1"]
[Date "2022.01.26"]
[WhiteClock "0:00:02"]
[BlackClock "0:00:05"]

1. f4 {[%clk 0:03:00]}  d5 {[%clk 0:02:57]} 2. Nf3 {[%clk 0:02:59]}  Bg4 {[%clk 0:02:58]} 3. Ne5 {[%clk 0:02:58]}  Bf5 {[%clk 0:02:55]} 4. d3 {[%clk 0:02:51]}  f6 {[%clk 0:02:50]} 5. Nf3 {[%clk 0:02:49]}  Nd7 {[%clk 0:02:42]} 6. g3 {[%clk 0:02:36]}  e5 {[%clk 0:02:42]} 7. fxe5 {[%clk 0:02:34]}  fxe5 {[%clk 0:02:33]} 8. Bg2 {[%clk 0:02:34]}  Bc5 {[%clk 0:02:32]} 9. d4 {[%clk 0:02:25]}  exd4 {[%clk 0:02:23]} 10. Nxd4 {[%clk 0:02:25]}  Qf6 {[%clk 0:01:47]} 11. c3 {[%clk 0:02:08]}  Ne7 {[%clk 0:01:36]} 12. O-O {[%clk 0:02:06]}  O-O {[%clk 0:01:28]} 13. Kh1 {[%clk 0:02:07]}  Qg6 {[%clk 0:01:09]} 14. Nd2 {[%clk 0:01:44]}  c6 {[%clk 0:01:00]} 15. Nxf5 {[%clk 0:01:37]}  Nxf5 {[%clk 0:01:00]} 16. Nf3 {[%clk 0:01:19]}  Ne5 {[%clk 0:00:45]} 17. Nd4 {[%clk 0:01:02]}  Ng4 {[%clk 0:00:39]} 18. Qd3 {[%clk 0:00:37]}  Nxd4 {[%clk 0:00:11]} 19. Qxg6 {[%clk 0:00:37]}  hxg6 {[%clk 0:00:11]} 20. cxd4 {[%clk 0:00:35]}  Bxd4 {[%clk 0:00:12]} 21. h3 {[%clk 0:00:24]}  Nf2+ {[%clk 0:00:12]} 22. Kh2 {[%clk 0:00:24]}  Rae8 {[%clk 0:00:10]} 23. Bf3 {[%clk 0:00:20]}  Ne4 {[%clk 0:00:09]} 24. Bf4 {[%clk 0:00:19]}  Bxb2 {[%clk 0:00:07]} 25. Rab1 {[%clk 0:00:19]}  Be5 {[%clk 0:00:06]} 26. Bxe5 {[%clk 0:00:15]}  Rxe5 {[%clk 0:00:07]} 27. Rxb7 {[%clk 0:00:14]}  Nd2 {[%clk 0:00:07]} 28. Rf2 {[%clk 0:00:12]}  Nxf3+ {[%clk 0:00:06]} 29. exf3 {[%clk 0:00:12]}  Rf7 {[%clk 0:00:07]} 30. Rb8+ {[%clk 0:00:12]}  Kh7 {[%clk 0:00:07]} 31. g4 {[%clk 0:00:12]}  g5 {[%clk 0:00:07]} 32. Kg3 {[%clk 0:00:12]}  Rc7 {[%clk 0:00:07]} 33. Rh2 {[%clk 0:00:11]}  c5 {[%clk 0:00:07]} 34. h4 {[%clk 0:00:12]}  Kg6 {[%clk 0:00:07]} 35. hxg5 {[%clk 0:00:10]}  Kf7 {[%clk 0:00:05]} 36. f4 {[%clk 0:00:10]}  Re3+ {[%clk 0:00:05]} 37. Kf2 {[%clk 0:00:11]}  d4 {[%clk 0:00:06]} 38. f5 {[%clk 0:00:11]}  c4 {[%clk 0:00:06]} 39. Rhh8 {[%clk 0:00:10]}  c3 {[%clk 0:00:04]} 40. g6+ {[%clk 0:00:09]}  Kf6 {[%clk 0:00:04]} 41. Rhf8+ {[%clk 0:00:04]}  Ke5 {[%clk 0:00:04]} 42. Rbe8+ {[%clk 0:00:04]}  Kf4 {[%clk 0:00:04]} 43. f6 {[%clk 0:00:02]}  gxf6 {[%clk 0:00:05]} 0-1


[Site "https://www.chess.com"]

[Event "Titled Tuesday Blitz January 25 2022"]
[White "Estrada Nieto, Julian"]
[Black "Erdogdu, Mert"]
[WhiteFideId "5101018"]
[BlackFideId "6301495"]
[WhiteElo "2246"]
[BlackElo "2485"]
[Result "0-1"]
[Round "05"]
[TimeControl "180+1"]
[Date "2022.01.26"]
[WhiteClock "0:00:02"]
[BlackClock "0:01:00"]

1. e4 {[%clk 0:03:00]}  c5 {[%clk 0:02:57]} 2. Nf3 {[%clk 0:02:59]}  d6 {[%clk 0:02:55]} 3. Bb5+ {[%clk 0:02:51]}  Nc6 {[%clk 0:02:54]} 4. d4 {[%clk 0:02:51]}  cxd4 {[%clk 0:02:53]} 5. Qxd4 {[%clk 0:02:51]}  Bd7 {[%clk 0:02:53]} 6. Bxc6 {[%clk 0:02:51]}  Bxc6 {[%clk 0:02:53]} 7. Nc3 {[%clk 0:02:51]}  Nf6 {[%clk 0:02:53]} 8. Bg5 {[%clk 0:02:51]}  e6 {[%clk 0:02:53]} 9. O-O-O {[%clk 0:02:51]}  Be7 {[%clk 0:02:53]} 10. Rhe1 {[%clk 0:02:51]}  O-O {[%clk 0:02:53]} 11. Kb1 {[%clk 0:02:51]}  b5 {[%clk 0:02:52]} 12. Bxf6 {[%clk 0:02:14]}  Bxf6 {[%clk 0:02:50]} 13. Qxd6 {[%clk 0:02:13]}  Qb6 {[%clk 0:02:49]} 14. Ne5 {[%clk 0:01:59]}  Bxe5 {[%clk 0:02:42]} 15. Qxe5 {[%clk 0:01:59]}  b4 {[%clk 0:02:42]} 16. Ne2 {[%clk 0:01:51]}  Qxf2 {[%clk 0:02:37]} 17. Nd4 {[%clk 0:01:46]}  Rac8 {[%clk 0:02:30]} 18. Re2 {[%clk 0:01:41]}  Qh4 {[%clk 0:02:29]} 19. Rd3 {[%clk 0:01:17]}  Ba8 {[%clk 0:02:05]} 20. a3 {[%clk 0:01:13]}  bxa3 {[%clk 0:02:02]} 21. Rxa3 {[%clk 0:01:12]}  Rfd8 {[%clk 0:01:44]} 22. Rxa7 {[%clk 0:01:04]}  Qg4 {[%clk 0:01:34]} 23. Nf3 {[%clk 0:00:37]}  h6 {[%clk 0:01:16]} 24. h3 {[%clk 0:00:21]}  Qg6 {[%clk 0:01:15]} 25. Ka2 {[%clk 0:00:13]}  Rc4 {[%clk 0:01:09]} 26. b3 {[%clk 0:00:05]}  Rxe4 {[%clk 0:01:08]} 27. Rxe4 {[%clk 0:00:05]}  Bxe4 {[%clk 0:01:06]} 28. Nh4 {[%clk 0:00:04]}  Qh7 {[%clk 0:01:03]} 29. Qc7 {[%clk 0:00:04]}  Rf8 {[%clk 0:01:03]} 30. Kb2 {[%clk 0:00:02]}  g5 {[%clk 0:01:01]} 31. Nf3 {[%clk 0:00:02]}  Qg7+ {[%clk 0:01:00]} 0-1


[Site "https://www.chess.com"]

[Event "Titled Tuesday Blitz January 25 2022"]
[White "Dronavalli, Harika"]
[Black "Xiong, Jeffery"]
[WhiteFideId "5015197"]
[BlackFideId "2047640"]
[WhiteElo "2382"]
[BlackElo "2727"]
[Result "0-1"]
[Round "05"]
[TimeControl "180+1"]
[Date "2022.01.26"]
[WhiteClock "0:00:03"]
[BlackClock "0:00:07"]

1. d4 {[%clk 0:02:40]}  Nf6 {[%clk 0:02:59]} 2. c4 {[%clk 0:02:39]}  c5 {[%clk 0:02:59]} 3. Nf3 {[%clk 0:02:37]}  cxd4 {[%clk 0:02:59]} 4. Nxd4 {[%clk 0:02:38]}  e6 {[%clk 0:03:00]} 5. g3 {[%clk 0:02:35]}  Qc7 {[%clk 0:02:59]} 6. Nd2 {[%clk 0:02:32]}  Nc6 {[%clk 0:02:59]} 7. N4f3 {[%clk 0:02:32]}  Rb8 {[%clk 0:02:54]} 8. Bg2 {[%clk 0:02:32]}  b5 {[%clk 0:02:54]} 9. cxb5 {[%clk 0:02:31]}  Rxb5 {[%clk 0:02:55]} 10. O-O {[%clk 0:02:24]}  Be7 {[%clk 0:02:55]} 11. e4 {[%clk 0:02:24]}  O-O {[%clk 0:02:51]} 12. b3 {[%clk 0:02:23]}  Ba6 {[%clk 0:02:44]} 13. Re1 {[%clk 0:02:15]}  Ng4 {[%clk 0:02:44]} 14. Nc4 {[%clk 0:02:06]}  d5 {[%clk 0:02:44]} 15. Bf4 {[%clk 0:01:52]}  Qd8 {[%clk 0:02:15]} 16. exd5 {[%clk 0:01:50]}  Rxd5 {[%clk 0:02:15]} 17. Qe2 {[%clk 0:01:48]}  Bc5 {[%clk 0:02:13]} 18. Rf1 {[%clk 0:01:41]}  Qf6 {[%clk 0:01:48]} 19. Rad1 {[%clk 0:01:17]}  Rxd1 {[%clk 0:01:47]} 20. Qxd1 {[%clk 0:01:16]}  Rd8 {[%clk 0:01:48]} 21. Qe2 {[%clk 0:01:16]}  Qc3 {[%clk 0:00:27]} 22. Ng5 {[%clk 0:00:35]}  Nxf2 {[%clk 0:00:27]} 23. Rxf2 {[%clk 0:00:30]}  Bxc4 {[%clk 0:00:27]} 24. bxc4 {[%clk 0:00:30]}  Bxf2+ {[%clk 0:00:13]} 25. Qxf2 {[%clk 0:00:30]}  Qxc4 {[%clk 0:00:11]} 26. Bf1 {[%clk 0:00:24]}  Rd1 {[%clk 0:00:10]} 27. h4 {[%clk 0:00:16]}  Nd4 {[%clk 0:00:06]} 28. Be3 {[%clk 0:00:13]}  Nf5 {[%clk 0:00:04]} 29. Bf4 {[%clk 0:00:12]}  h6 {[%clk 0:00:03]} 30. Nf3 {[%clk 0:00:13]}  Qd5 {[%clk 0:00:03]} 31. Kh2 {[%clk 0:00:09]}  Nd6 {[%clk 0:00:03]} 32. Bg2 {[%clk 0:00:09]}  Ne4 {[%clk 0:00:02]} 33. Qe3 {[%clk 0:00:09]}  Nf6 {[%clk 0:00:02]} 34. Ne5 {[%clk 0:00:09]}  Qxa2 {[%clk 0:00:02]} 35. Kh3 {[%clk 0:00:08]}  Rd8 {[%clk 0:00:01]} 36. Bf3 {[%clk 0:00:06]}  Qb1 {[%clk 0:00:02]} 37. g4 {[%clk 0:00:06]}  Qf1+ {[%clk 0:00:02]} 38. Bg2 {[%clk 0:00:06]}  Qb5 {[%clk 0:00:03]} 39. Kg3 {[%clk 0:00:06]}  Nd5 {[%clk 0:00:03]} 40. Bxd5 {[%clk 0:00:06]}  Qxd5 {[%clk 0:00:04]} 41. g5 {[%clk 0:00:06]}  hxg5 {[%clk 0:00:04]} 42. hxg5 {[%clk 0:00:07]}  Rb8 {[%clk 0:00:04]} 43. Qf2 {[%clk 0:00:06]}  Rb3+ {[%clk 0:00:05]} 44. Kg4 {[%clk 0:00:06]}  Qe4 {[%clk 0:00:05]} 45. Qxa7 {[%clk 0:00:04]}  Qf5+ {[%clk 0:00:06]} 46. Kh4 {[%clk 0:00:03]}  Rh3# {[%clk 0:00:07]} 0-1


[Site "https://www.chess.com"]

[Event "Titled Tuesday Blitz January 25 2022"]
[White "Hoffmann, Asa"]
[Black "Zelbel, Patrick"]
[WhiteFideId "2001470"]
[BlackFideId "24624322"]
[WhiteElo "2117"]
[BlackElo "2493"]
[Result "0-1"]
[Round "05"]
[TimeControl "180+1"]
[Date "2022.01.26"]
[WhiteClock "0:00:24"]
[BlackClock "0:00:53"]

1. d4 {[%clk 0:02:56]}  g6 {[%clk 0:02:57]} 2. e4 {[%clk 0:02:55]}  Bg7 {[%clk 0:02:57]} 3. Be3 {[%clk 0:02:54]}  c5 {[%clk 0:02:56]} 4. c3 {[%clk 0:02:54]}  d5 {[%clk 0:02:50]} 5. exd5 {[%clk 0:02:49]}  Qxd5 {[%clk 0:02:51]} 6. dxc5 {[%clk 0:02:45]}  Nf6 {[%clk 0:02:42]} 7. Nf3 {[%clk 0:02:42]}  O-O {[%clk 0:02:35]} 8. Na3 {[%clk 0:02:34]}  Nbd7 {[%clk 0:02:32]} 9. Be2 {[%clk 0:02:27]}  Qc6 {[%clk 0:02:31]} 10. Bb5 {[%clk 0:02:23]}  Qc7 {[%clk 0:02:27]} 11. O-O {[%clk 0:02:01]}  a6 {[%clk 0:02:27]} 12. Be2 {[%clk 0:01:55]}  Ng4 {[%clk 0:02:23]} 13. Bd4 {[%clk 0:01:55]}  e5 {[%clk 0:02:20]} 14. h3 {[%clk 0:01:50]}  exd4 {[%clk 0:02:20]} 15. hxg4 {[%clk 0:01:50]}  dxc3 {[%clk 0:02:20]} 16. bxc3 {[%clk 0:01:47]}  Qxc5 {[%clk 0:02:17]} 17. Nc4 {[%clk 0:01:44]}  b5 {[%clk 0:02:17]} 18. Ne3 {[%clk 0:01:43]}  Nb6 {[%clk 0:02:15]} 19. Rc1 {[%clk 0:01:37]}  Bb7 {[%clk 0:02:12]} 20. Nd4 {[%clk 0:01:34]}  Rad8 {[%clk 0:02:07]} 21. Bf3 {[%clk 0:01:34]}  Bxf3 {[%clk 0:01:53]} 22. Qxf3 {[%clk 0:01:32]}  Nc4 {[%clk 0:01:51]} 23. Nxc4 {[%clk 0:01:29]}  Qxc4 {[%clk 0:01:52]} 24. Qb7 {[%clk 0:01:27]}  Rd6 {[%clk 0:01:49]} 25. a3 {[%clk 0:01:14]}  Qc5 {[%clk 0:01:46]} 26. a4 {[%clk 0:01:06]}  bxa4 {[%clk 0:01:44]} 27. Rfe1 {[%clk 0:00:59]}  a3 {[%clk 0:01:42]} 28. Qb3 {[%clk 0:00:54]}  Rb6 {[%clk 0:01:32]} 29. Qa4 {[%clk 0:00:49]}  a5 {[%clk 0:01:22]} 30. Ra1 {[%clk 0:00:46]}  Qxc3 {[%clk 0:01:20]} 31. Nf3 {[%clk 0:00:41]}  Rb3 {[%clk 0:01:04]} 32. Rac1 {[%clk 0:00:37]}  Qb4 {[%clk 0:01:02]} 33. Qd7 {[%clk 0:00:35]}  a2 {[%clk 0:00:59]} 34. Ne5 {[%clk 0:00:29]}  Rb1 {[%clk 0:00:56]} 35. Nxf7 {[%clk 0:00:25]}  Qxe1+ {[%clk 0:00:54]} 36. Rxe1 {[%clk 0:00:24]}  Rxe1+ {[%clk 0:00:55]} 37. Kh2 {[%clk 0:00:24]}  a1=Q {[%clk 0:00:53]} 0-1


[Site "https://www.chess.com"]

[Event "Titled Tuesday Blitz January 25 2022"]
[White "Horvath, Dominik"]
[Black "Liyanage, Ranindu Dilshan"]
[WhiteFideId "1642561"]
[BlackFideId "9915834"]
[WhiteElo "2336"]
[BlackElo "1858"]
[Result "0-1"]
[Round "05"]
[TimeControl "180+1"]
[Date "2022.01.26"]
[WhiteClock "0:00:13"]
[BlackClock "0:00:10"]

1. Nf3 {[%clk 0:03:00]}  Nf6 {[%clk 0:02:57]} 2. c4 {[%clk 0:02:54]}  e6 {[%clk 0:02:57]} 3. g3 {[%clk 0:02:51]}  d5 {[%clk 0:02:58]} 4. Bg2 {[%clk 0:02:51]}  dxc4 {[%clk 0:02:57]} 5. O-O {[%clk 0:02:51]}  c5 {[%clk 0:02:53]} 6. Na3 {[%clk 0:02:48]}  Nc6 {[%clk 0:02:50]} 7. Nxc4 {[%clk 0:02:48]}  Be7 {[%clk 0:02:51]} 8. b3 {[%clk 0:02:46]}  O-O {[%clk 0:02:48]} 9. Bb2 {[%clk 0:02:46]}  Qc7 {[%clk 0:02:47]} 10. Rc1 {[%clk 0:02:45]}  Rd8 {[%clk 0:02:46]} 11. d3 {[%clk 0:02:41]}  b6 {[%clk 0:02:43]} 12. a3 {[%clk 0:02:34]}  Bb7 {[%clk 0:02:42]} 13. e3 {[%clk 0:02:34]}  b5 {[%clk 0:02:36]} 14. Nce5 {[%clk 0:02:30]}  Nxe5 {[%clk 0:02:32]} 15. Bxe5 {[%clk 0:02:28]}  Qd7 {[%clk 0:02:27]} 16. d4 {[%clk 0:02:05]}  cxd4 {[%clk 0:02:26]} 17. exd4 {[%clk 0:01:59]}  Rac8 {[%clk 0:02:08]} 18. b4 {[%clk 0:01:52]}  Nd5 {[%clk 0:02:01]} 19. Qd2 {[%clk 0:01:49]}  Nb6 {[%clk 0:01:59]} 20. Rxc8 {[%clk 0:01:35]}  Rxc8 {[%clk 0:02:00]} 21. Bf4 {[%clk 0:01:30]}  Rd8 {[%clk 0:01:56]} 22. Ne5 {[%clk 0:01:20]}  Nc4 {[%clk 0:01:08]} 23. Nxd7 {[%clk 0:01:11]}  Nxd2 {[%clk 0:01:08]} 24. Bxb7 {[%clk 0:01:12]}  Nxf1 {[%clk 0:00:32]} 25. Ne5 {[%clk 0:00:37]}  g5 {[%clk 0:00:21]} 26. Bc1 {[%clk 0:00:27]}  Rxd4 {[%clk 0:00:19]} 27. Nc6 {[%clk 0:00:27]}  Rd1 {[%clk 0:00:15]} 28. Nxe7+ {[%clk 0:00:27]}  Kf8 {[%clk 0:00:16]} 29. Kg2 {[%clk 0:00:26]}  Rxc1 {[%clk 0:00:15]} 30. Nc6 {[%clk 0:00:26]}  Nd2 {[%clk 0:00:12]} 31. Nd4 {[%clk 0:00:22]}  Nc4 {[%clk 0:00:13]} 32. Nxb5 {[%clk 0:00:22]}  Ra1 {[%clk 0:00:13]} 33. Nxa7 {[%clk 0:00:20]}  Rxa3 {[%clk 0:00:14]} 34. Nc6 {[%clk 0:00:20]}  Rb3 {[%clk 0:00:14]} 35. Ba6 {[%clk 0:00:19]}  Nd6 {[%clk 0:00:13]} 36. Bf1 {[%clk 0:00:18]}  Ke8 {[%clk 0:00:12]} 37. h3 {[%clk 0:00:15]}  Kd7 {[%clk 0:00:12]} 38. Ne5+ {[%clk 0:00:15]}  Ke7 {[%clk 0:00:10]} 39. Nc6+ {[%clk 0:00:15]}  Kd7 {[%clk 0:00:10]} 40. Ne5+ {[%clk 0:00:15]}  Kc7 {[%clk 0:00:10]} 41. g4 {[%clk 0:00:14]}  Rxb4 {[%clk 0:00:09]} 42. Nf3 {[%clk 0:00:14]}  h6 {[%clk 0:00:08]} 43. Ne5 {[%clk 0:00:15]}  Rf4 {[%clk 0:00:08]} 44. Nd3 {[%clk 0:00:15]}  Rd4 {[%clk 0:00:08]} 45. Ne5 {[%clk 0:00:15]}  Ra4 {[%clk 0:00:06]} 46. Nd3 {[%clk 0:00:13]}  Kd8 {[%clk 0:00:06]} 47. Nc5 {[%clk 0:00:13]}  Ra5 {[%clk 0:00:07]} 48. Nb3 {[%clk 0:00:13]}  Re5 {[%clk 0:00:06]} 49. Nd4 {[%clk 0:00:13]}  Rc5 {[%clk 0:00:05]} 50. Nf3 {[%clk 0:00:13]}  Rc7 {[%clk 0:00:05]} 51. Nd4 {[%clk 0:00:13]}  Ke7 {[%clk 0:00:06]} 52. Ne2 {[%clk 0:00:12]}  Rd7 {[%clk 0:00:06]} 53. Ng3 {[%clk 0:00:12]}  Ne8 {[%clk 0:00:06]} 54. Ne4 {[%clk 0:00:12]}  Nf6 {[%clk 0:00:07]} 55. Nc5 {[%clk 0:00:13]}  Rc7 {[%clk 0:00:07]} 56. Na6 {[%clk 0:00:12]}  Rc1 {[%clk 0:00:07]} 57. Nb4 {[%clk 0:00:12]}  Nd5 {[%clk 0:00:07]} 58. Nd3 {[%clk 0:00:13]}  Rb1 {[%clk 0:00:07]} 59. Be2 {[%clk 0:00:12]}  Nf4+ {[%clk 0:00:06]} 60. Nxf4 {[%clk 0:00:12]}  gxf4 {[%clk 0:00:07]} 61. Bd3 {[%clk 0:00:12]}  Rb3 {[%clk 0:00:07]} 62. Bc4 {[%clk 0:00:12]}  Rb4 {[%clk 0:00:06]} 63. Ba6 {[%clk 0:00:12]}  e5 {[%clk 0:00:07]} 64. Kf3 {[%clk 0:00:11]}  f6 {[%clk 0:00:07]} 65. Bf1 {[%clk 0:00:10]}  Kd6 {[%clk 0:00:08]} 66. h4 {[%clk 0:00:10]}  Kc5 {[%clk 0:00:08]} 67. g5 {[%clk 0:00:09]}  fxg5 {[%clk 0:00:08]} 68. hxg5 {[%clk 0:00:10]}  hxg5 {[%clk 0:00:08]} 69. Kg4 {[%clk 0:00:11]}  Kd4 {[%clk 0:00:09]} 70. Kxg5 {[%clk 0:00:11]}  Rb2 {[%clk 0:00:09]} 71. f3 {[%clk 0:00:12]}  Rf2 {[%clk 0:00:10]} 72. Bh3 {[%clk 0:00:12]}  Rxf3 {[%clk 0:00:10]} 73. Bf5 {[%clk 0:00:13]}  Rg3+ {[%clk 0:00:11]} 74. Kh4 {[%clk 0:00:13]}  Ke3 {[%clk 0:00:10]} 75. Bg4 {[%clk 0:00:13]}  Rxg4+ {[%clk 0:00:10]} 0-1


[Site "https://www.chess.com"]